bitfinex-derivatives/quotes_SOLF0:USTF0_20251024
["timestamp","ask_amount","ask_price","bid_price","bid_amount"]
[1761316078065,4.7417,189.78,189.69,1.31]
[1761316078250,2.79,189.84,189.69,1.31]
[1761316078652,4.7421,189.77,189.69,1.31]
[1761316079766,4.7413,189.8,189.69,1.31]
[1761316080065,2.79,189.84,189.69,1.31]
[1761316080459,7.88696711,189.84,189.69,1.31]
[1761316080667,2.79,189.79,189.62,47.58]
[1761316080855,2.79,189.78,189.61,6.40696711]
[1761316081175,2.79,189.78,189.62,1.31]
[1761316082163,4.7424,189.75,189.63,1.31]
[1761316082667,2.79,189.78,189.63,1.31]
[1761316082968,2.79,189.78,189.66,1.31]
[1761316083659,2.79,189.78,189.67,1.31]
[1761316083860,4.7419,189.77,189.67,1.31]
[1761316084163,30.37,189.83,189.67,1.31]
[1761316084360,4.741,189.81,189.7,1.31]
[1761316084669,30.37,189.83,189.7,1.31]
[1761316084862,27.58,189.83,189.7,1.31]
[1761316085166,2.79,189.9,189.74,1.31]
[1761316085371,4.7397,189.86,189.74,1.31]
[1761316085664,2.79,189.85,189.74,1.31]
[1761316086169,4.7417,189.78,189.69,5.09696711]
[1761316086364,4.7417,189.78,189.7,1.31]
[1761316087671,4.7412,189.81,189.73,1.31]
[1761316089258,2.78,189.87,189.73,1.31]
[1761316089259,4.7414,189.8,189.74,1.31]
[1761316089659,4.7407,189.82,189.74,1.31]
[1761316089865,2.78,189.87,189.74,1.31]
[1761316090773,4.7407,189.83,189.74,1.31]
[1761316091071,4.7407,189.83,189.75,1.31]
[1761316091271,2.78,189.94,189.75,1.31]
[1761316091770,2.78,189.94,189.82,1.31]
[1761316091970,2.78,189.99,189.85,8.3734888]
[1761316092273,2.78,190.05,189.86,1.31]
[1761316092966,4.7367,189.98,189.86,1.31]
[1761316093166,4.7367,189.98,189.88,1.31]
[1761316093366,2.78,190.01,189.88,1.31]
[1761316093964,4.7362,190.01,189.88,1.31]
[1761316094172,9.4667,190.12,189.9,1.31]
[1761316094173,2.78,190.06,189.9,1.31]
[1761316094566,4.7352,190.05,189.93,1.31]
[1761316095268,8.3734888,190.11,189.95,1.31]
[1761316095269,2.78,190.11,189.95,1.31]
[1761316095973,4.7347,190.06,189.95,1.31]
[1761316096270,2.78,190.11,189.95,1.31]
[1761316096468,2.78,190.11,189.99,1.31]
[1761316096668,2.78,190.11,190.01,1.31]
[1761316096876,4.7333,190.12,190.03,1.31]
[1761316097064,4.7333,190.12,190.04,4.67878799]
[1761316097264,4.7333,190.12,190.03,1.31]
[1761316097467,7.5127,190.15,190.03,1.31]
[1761316097671,2.78,190.14,190.04,4.67159756]
[1761316097872,2.78,190.14,190.03,1.31]
[1761316099677,2.78,190.13,189.97,1.31]
[1761316099878,2.78,190.13,189.98,4.65900865]
[1761316100079,2.78,190.13,189.99,4.65900865]
[1761316100280,2.78,190.13,189.96,1.31]
[1761316100471,2.78,190.13,189.97,5.9643096]
[1761316100775,4.7347,190.07,189.98,4.6543096]
[1761316100974,2.78,190.09,189.98,4.6543096]
[1761316101177,4.735,190.05,189.98,4.6543096]
[1761316102271,4.7344,190.08,189.99,1.31]
[1761316102471,4.7344,190.08,190.0,4.6543096]
[1761316102773,4.7344,190.08,189.99,1.31]
[1761316102972,4.7344,190.08,190.0,4.64598212]
[1761316103274,8.3734888,190.19,189.99,1.31]
[1761316103275,2.78,190.14,189.99,1.31]
[1761316103473,2.78,190.14,190.01,1.31]
[1761316103670,2.78,190.14,189.97,1.31]
[1761316103975,4.7353,190.04,189.97,1.31]
[1761316104573,2.78,190.07,189.97,1.31]
[1761316104878,2.78,190.07,189.91,1.31]
[1761316105180,2.78,190.07,189.93,1.31]
[1761316105382,2.78,190.07,189.94,5.95043735]
[1761316105678,4.7354,190.04,189.96,1.31]
[1761316105876,4.7354,190.04,189.97,4.63843244]
[1761316106072,4.7354,190.04,189.96,1.31]
[1761316106271,4.7354,190.04,189.97,4.63649885]
[1761316106478,4.7354,190.04,189.96,1.31]
[1761316106777,4.735,190.05,189.98,1.31]
[1761316106982,2.78,190.07,189.93,1.31]
[1761316107283,2.78,190.07,189.94,5.94642052]
[1761316107580,2.78,190.07,189.95,4.63642052]
[1761316107772,2.78,190.07,189.96,4.63642052]
[1761316107974,2.78,190.07,189.94,1.31]
[1761316107975,4.7358,190.02,189.94,1.31]
[1761316108177,4.7358,190.02,189.95,5.94503268]
[1761316108475,2.78,190.07,189.96,5.94503268]
[1761316108780,2.78,190.07,189.96,1.31]
[1761316109174,4.7357,190.03,189.97,4.6358021]
[1761316109481,4.7357,190.03,189.96,1.31]
[1761316109676,4.7357,190.03,189.97,4.63779484]
[1761316109977,4.7357,190.03,189.96,1.31]
[1761316110177,4.7357,190.03,189.97,4.63779429]
[1761316110380,4.7357,190.03,189.96,1.31]
[1761316110576,4.7357,190.03,189.97,4.63974227]
[1761316110777,4.7357,190.03,189.96,1.31]
[1761316110971,2.78,190.01,189.97,4.63974227]
[1761316111183,2.78,190.01,189.92,1.31]
[1761316111377,2.78,190.01,189.93,4.64178659]
[1761316111580,2.78,190.1,189.94,4.64178659]
[1761316112281,2.78,190.1,189.95,4.64178659]
[1761316112482,4.7359,190.02,189.96,4.64178659]
[1761316112777,4.7359,190.02,189.97,4.64485513]
[1761316112980,4.7359,190.02,189.93,1.31]
[1761316112981,26.0,190.3,189.98,4.64478339]
[1761316113178,16.06438529,190.24,190.04,2.7]
[1761316113373,8.3734888,190.25,190.06,2.7]
[1761316113678,8.3734888,190.25,190.07,7.34348797]
[1761316113679,45.8134888,190.25,190.07,7.34348797]
[1761316113983,45.8134888,190.25,189.99,6.88]
[1761316113984,37.44,190.25,190.08,7.34348797]
[1761316114186,37.44,190.25,190.09,4.64348797]
[1761316114480,37.44,190.25,190.1,4.64348797]
[1761316114685,37.44,190.25,190.11,4.64348797]
[1761316114886,37.44,190.25,190.12,4.64348797]
[1761316115180,2.78,190.24,190.13,4.64348797]
[1761316115382,2.78,190.24,190.09,2.7]
[1761316115585,2.78,190.24,190.1,4.64491056]
[1761316115882,2.78,190.2,190.11,4.64491056]
[1761316116089,2.78,190.2,190.05,2.7]
[1761316116384,2.78,190.2,190.07,2.7]
[1761316116385,4.7318,190.18,190.07,2.7]
[1761316116576,4.7318,190.18,190.08,4.64743028]
[1761316116777,64.55310114,190.26,190.07,2.7]
[1761316116778,4.7322,190.16,190.09,4.64743028]
[1761316116982,4.7322,190.16,190.1,4.64743028]
[1761316116983,7.5122,190.16,190.1,4.64743028]
[1761316117183,7.5122,190.16,190.07,2.7]
[1761316117378,2.88,190.13,190.08,4.65064227]
[1761316117581,2.88,190.13,190.09,4.6514175]
[1761316117880,2.88,190.13,190.1,4.6514175]
[1761316118086,2.88,190.13,190.02,2.63]
[1761316118479,4.7332,190.12,190.02,2.63]
[1761316118674,2.88,190.12,189.97,70.3734888]
[1761316118875,2.88,190.12,189.97,8.3734888]
[1761316119081,2.88,190.12,189.98,2.63]
[1761316119677,2.88,190.19,189.98,2.63]
[1761316119884,4.7325,190.16,190.03,2.63]
[1761316120084,2.88,190.19,190.03,2.63]
[1761316120581,2.88,190.19,190.05,2.63]
[1761316120986,2.88,190.19,190.08,2.63]
[1761316122492,2.88,190.25,190.08,2.63]
[1761316122692,2.88,190.23,190.1,2.63]
[1761316122990,7.6107,190.23,190.1,2.63]
[1761316123289,2.88,190.23,190.1,2.63]
[1761316123695,2.88,190.23,190.11,8.3734888]
[1761316123892,17.8297888,190.33,190.12,2.63]
[1761316124091,73.518,190.41,190.06,8.3734888]
[1761316124092,2.88,190.28,190.16,2.63]
[1761316124297,2.88,190.28,190.17,2.63]
[1761316124591,2.88,190.28,190.15,8.3734888]
[1761316124795,4.7307,190.23,190.15,8.3734888]
[1761316124981,4.7307,190.23,190.12,8.3734888]
[1761316125187,4.7307,190.23,190.13,2.63]
[1761316126096,4.7299,190.26,190.13,2.63]
[1761316126398,4.7299,190.26,190.17,2.63]
[1761316126891,7.6093,190.28,190.17,2.63]
[1761316127100,4.7293,190.28,190.18,2.63]
[1761316127497,2.88,190.33,190.18,2.63]
[1761316128795,4.7292,190.29,190.2,2.63]
[1761316129500,2.88,190.38,190.21,2.63]
[1761316130004,4.7283,190.32,190.22,4.70297308]
[1761316130299,2.88,190.33,190.23,4.70297308]
[1761316130488,4.7292,190.29,190.24,4.70297308]
[1761316130695,2.88,190.28,190.25,4.70297308]
[1761316130888,2.88,190.28,190.26,4.70297308]
[1761316131090,7.6092,190.28,190.27,4.70297308]
[1761316131295,2.88,190.33,190.27,4.70297308]
[1761316131494,2.88,190.33,190.28,4.70297308]
[1761316131800,2.88,190.33,190.29,4.70297308]
[1761316131989,2.88,190.33,190.3,4.70297308]
[1761316132189,2.88,190.33,190.31,4.70297308]
[1761316132393,4.7277,190.35,190.23,2.63]
[1761316132394,7.6077,190.35,190.32,4.70297308]
[1761316132594,7.6077,190.35,190.33,4.70297308]
[1761316132893,7.6077,190.35,190.34,4.70297308]
[1761316133300,4.728,190.34,190.23,2.63]
[1761316133501,4.728,190.34,190.25,2.63]
[1761316133706,4.7282,190.32,190.26,4.70706205]
[1761316133999,2.88,190.35,190.27,7.33706205]
[1761316134200,2.88,190.35,190.28,4.70706205]
[1761316134401,2.88,190.35,190.27,2.63]
[1761316134402,2.88,190.35,190.29,4.70706205]
[1761316134609,2.88,190.32,190.3,4.70706205]
[1761316134798,4.7282,190.33,190.31,4.70706205]
[1761316134993,4.7282,190.33,190.22,2.63]
[1761316134994,7.6082,190.33,190.32,4.70706205]
[1761316136300,0.91468223,190.4,190.32,4.70706205]
[1761316136301,4.7275,190.36,190.32,4.70706205]
[1761316136508,2.88,190.37,190.33,4.70706205]
[1761316136805,2.88,190.37,190.34,4.70706205]
[1761316137005,2.88,190.37,190.35,4.70706205]
[1761316137203,4.727,190.37,190.36,4.70706205]
[1761316137503,2.64,190.42,190.36,4.70706205]
[1761316137710,2.64,190.4,190.37,4.70706205]
[1761316137904,2.64,190.4,190.25,2.68]
[1761316138205,4.7276,190.35,190.25,2.68]
[1761316138406,2.64,190.4,190.25,2.68]
[1761316140209,47.2,190.39,190.25,2.68]
[1761316140414,2.64,190.38,190.25,2.68]
[1761316141207,4.7283,190.32,190.25,2.68]
[1761316141907,2.64,190.35,190.25,2.68]
[1761316142812,2.64,190.39,190.25,2.68]
[1761316144807,2.64,190.38,190.25,2.68]
[1761316146607,2.64,190.38,190.14,77.77]
[1761316146608,2.64,190.33,190.2,2.68]
[1761316147408,2.64,190.33,190.14,62.0]
[1761316147409,2.66,190.31,190.15,2.86]
[1761316147609,2.66,190.29,190.15,2.86]
[1761316148314,47.04,190.3,190.15,2.86]
[1761316148315,2.66,190.25,190.15,2.86]
[1761316148609,2.66,190.25,190.11,2.86]
[1761316148810,4.7314,190.2,190.11,2.86]
[1761316149007,2.66,190.21,190.11,2.86]
[1761316149405,7.3912,190.21,190.11,2.86]
[1761316149608,4.7312,190.21,190.11,2.86]
[1761316149805,2.66,190.26,190.11,2.86]
[1761316150616,4.7307,190.23,190.14,2.86]
[1761316151902,2.66,190.26,190.15,2.86]
[1761316153608,4.7313,190.2,190.15,2.86]
[1761316153804,2.66,190.24,190.11,2.86]
[1761316155211,2.66,190.24,190.12,62.0]
[1761316155418,2.66,190.24,190.13,2.86]
[1761316156107,4.7314,190.2,190.13,2.86]
[1761316156919,4.7318,190.18,190.13,2.86]
[1761316157115,2.66,190.24,190.1,105.54516927]
[1761316157303,2.66,190.24,190.1,108.40516927]
[1761316157815,2.66,190.21,190.1,108.40516927]
[1761316159010,2.66,190.21,190.11,2.86]
[1761316160914,2.66,190.25,190.12,4.7332]
[1761316161114,2.66,190.25,190.13,2.86]
[1761316161713,2.66,190.25,190.15,2.86]
[1761316162317,2.66,190.29,190.16,2.86]
[1761316162623,2.66,190.29,190.17,2.86]
[1761316163013,2.66,190.29,190.19,2.86]
[1761316164219,2.66,190.29,190.2,2.86]
[1761316164415,2.66,190.33,190.2,2.86]
[1761316166618,2.66,190.33,190.18,62.0]
[1761316166619,2.66,190.33,190.22,2.86]
[1761316169517,2.66,190.33,190.23,2.86]
[1761316174630,2.66,190.33,190.19,2.64]
[1761316174927,2.66,190.33,190.21,2.64]
[1761316179037,2.66,190.33,190.24,2.69]
[1761316182830,2.71,190.41,190.28,2.69]
[1761316183640,2.71,190.41,190.24,5.0667072]
[1761316183641,2.71,190.41,190.24,2.69]
[1761316183839,2.71,190.41,190.25,4.81663427]
[1761316184136,2.71,190.41,190.26,4.81663427]
[1761316184345,2.71,190.41,190.27,4.81663427]
[1761316184524,2.71,190.41,190.28,4.81663427]
[1761316184727,2.71,190.41,190.29,4.81663427]
[1761316184935,2.71,190.41,190.3,4.81663427]
[1761316185138,2.71,190.41,190.31,4.81663427]
[1761316185334,2.71,190.41,190.32,4.81663427]
[1761316185536,2.71,190.41,190.33,4.81663427]
[1761316185738,2.71,190.41,190.34,4.81663427]
[1761316185937,2.71,190.41,190.35,4.81663427]
[1761316186134,2.71,190.41,190.36,4.81663427]
[1761316186337,2.71,190.41,190.37,4.81663427]
[1761316186532,2.71,190.41,190.38,4.81663427]
[1761316186728,2.71,190.41,190.39,4.81663427]
[1761316186936,2.71,190.41,190.4,4.81663427]
[1761316187135,2.71,190.41,190.4,3.427e-05]
[1761316187442,7.4361,190.41,190.4,3.427e-05]
[1761316187937,1.06,190.41,190.33,2.69]
[1761316188136,2.71,190.4,190.33,2.69]
[1761316189342,2.71,190.45,190.33,2.69]
[1761316192039,4.7265,190.4,190.33,2.69]
[1761316194556,4.7268,190.39,190.33,2.69]
[1761316196156,4.727,190.38,190.33,2.69]
[1761316196357,2.71,190.38,190.3,7.7567072]
[1761316196651,2.71,190.38,190.31,2.69]
[1761316197154,4.7274,190.36,190.31,2.69]
[1761316198852,4.7274,190.36,190.33,2.20740294]
[1761316199244,4.7274,190.36,190.33,5.08740294]
[1761316200250,2.89,190.36,190.29,2.88]
[1761316200450,2.89,190.36,190.32,2.88]
[1761316200861,2.89,190.34,190.3,2.20740294]
[1761316201059,2.89,190.34,190.28,2.88]
[1761316201060,2.89,190.34,190.28,2.20740294]
[1761316201352,2.20740294,190.31,190.16,2.88]
[1761316201557,2.89,190.28,190.21,2.20740294]
[1761316201854,46.66,190.36,190.16,2.88]
[1761316201855,2.20740294,190.27,190.18,2.20740294]
[1761316202058,2.89,190.26,190.16,2.88]
[1761316202358,2.89,190.24,190.16,5.08740294]
[1761316202560,2.89,190.24,190.17,2.20740294]
[1761316202856,2.89,190.27,190.2,5.08740294]
[1761316203161,2.89,190.26,190.18,2.20740294]
[1761316203351,2.20740294,190.28,190.2,2.20740294]
[1761316203548,5.09740294,190.28,190.2,2.20740294]
[1761316203748,2.89,190.28,190.2,2.20740294]
[1761316203952,2.89,190.28,190.22,2.20740294]
[1761316204348,2.20740294,190.31,190.22,5.08740294]
[1761316204563,4.7288,190.31,190.24,2.20740294]
[1761316204764,2.89,190.32,190.24,2.88]
[1761316205559,7.6186,190.31,190.24,2.88]
[1761316205960,2.89,190.33,190.19,2.88]
[1761316206157,2.89,190.33,190.16,62.0]
[1761316206158,2.89,190.33,190.16,2.88]
[1761316206557,2.89,190.25,190.09,7.68417789]
[1761316206756,2.89,190.25,190.1,2.88]
[1761316207765,2.89,190.25,190.02,6.50071725]
[1761316207766,2.89,190.25,190.13,2.86]
[1761316208074,4.7317,190.19,190.09,2.86]
[1761316208257,2.83,190.19,190.09,2.86]
[1761316208567,2.83,190.2,190.09,2.86]
[1761316208868,2.83,190.2,190.04,2.86]
[1761316209364,2.83,190.2,190.06,2.86]
[1761316209563,2.83,190.2,190.08,2.86]
[1761316209971,2.83,190.19,190.08,2.86]
[1761316210259,5.0630356,190.18,190.03,2.86]
[1761316210467,2.83,190.17,190.03,2.86]
[1761316212661,2.83,190.17,190.05,2.86]
[1761316213268,2.83,190.17,190.07,2.86]
[1761316214661,4.7326,190.15,190.07,2.86]
[1761316216162,2.83,190.17,190.07,2.86]
[1761316217268,2.83,190.22,190.07,2.86]
[1761316217567,2.83,190.22,190.04,70.35284624]
[1761316217568,7.561,190.22,190.09,2.86]
[1761316217756,7.561,190.22,190.13,2.86]
[1761316217961,412.0,190.32,190.13,2.86]
[1761316217962,2.83,190.29,190.13,2.86]
[1761316218162,0.91467021,190.37,190.17,2.86]
[1761316218163,2.83,190.33,190.17,2.86]
[1761316218666,8.35284624,190.28,190.1,2.86]
[1761316218969,2.83,190.26,190.05,2.86]
[1761316219171,2.83,190.26,190.09,2.86]
[1761316219368,2.83,190.26,190.1,2.86]
[1761316219874,2.83,190.28,190.1,2.86]
[1761316220172,2.83,190.27,190.1,2.86]
[1761316220370,4.7323,190.16,190.1,2.86]
[1761316220669,2.83,190.2,190.1,2.86]
[1761316221176,2.83,190.2,190.05,8.35284624]
[1761316221177,3.67871946,190.27,190.14,2.86]
[1761316221359,2.83,190.3,190.17,2.86]
[1761316222472,2.83,190.35,190.21,2.86]
[1761316222969,2.83,190.35,190.22,2.86]
[1761316223976,4.7278,190.34,190.22,2.86]
[1761316224271,2.83,190.34,190.18,2.86]
[1761316224476,2.83,190.33,190.18,2.86]
[1761316226066,4.7301,190.25,190.18,2.86]
[1761316226474,2.83,190.27,190.18,2.86]
[1761316227963,4.7298,190.26,190.18,2.86]
[1761316228670,8.35284624,190.34,190.1,2.86]
[1761316228671,4.731,190.22,190.1,2.86]
[1761316229274,2.83,190.25,190.1,2.86]
[1761316229469,4.7317,190.19,190.1,2.86]
[1761316231071,4.7311,190.21,190.1,2.86]
[1761316231581,4.7315,190.2,190.12,2.86]
[1761316231780,2.83,190.24,190.13,64.86]
[1761316231970,2.83,190.24,190.13,2.86]
[1761316232273,2.83,190.21,190.09,2.86]
[1761316232475,83.0489,190.23,189.91,446.82680069]
[1761316232476,2.83,190.19,190.04,2.86]
[1761316232678,4.7341,190.09,190.04,2.86]
[1761316232878,2.83,190.13,190.04,2.86]
[1761316233476,4.7342,190.09,190.04,2.86]
[1761316233674,2.83,190.13,189.98,108.92927077]
[1761316233675,2.83,190.13,190.0,2.74]
[1761316233884,2.7,190.14,189.98,104.19267077]
[1761316234070,2.7,190.13,189.98,104.19267077]
[1761316234469,4.7348,190.07,189.98,106.93267077]
[1761316234978,2.7,190.1,189.98,106.93267077]
[1761316235773,4.7347,190.07,189.98,106.93267077]
[1761316237172,7.4347,190.07,189.98,106.93267077]
[1761316238969,4.7351,190.05,189.98,106.93267077]
[1761316239575,2.7,190.07,189.98,106.93267077]
[1761316239879,2.7,190.07,189.99,2.64]
[1761316240476,4.7348,190.06,189.99,2.64]
[1761316241776,4.7348,190.06,189.98,104.19267077]
[1761316241969,7.4348,190.06,189.98,104.19267077]
[1761316242170,3.66872968,190.15,189.98,104.19267077]
[1761316242171,34.35284624,190.12,189.98,104.19267077]
[1761316242377,73.6179,190.16,189.9,2.64]
[1761316242378,2.7,190.07,189.9,2.64]
[1761316242681,4.7363,190.01,189.9,2.64]
[1761316243069,4.7363,190.01,189.91,2.64]
[1761316243276,2.7,190.02,189.91,2.64]
[1761316243475,2.7,190.07,189.95,2.64]
[1761316243775,4.733,190.13,190.0,2.64]
[1761316243982,4.733,190.13,190.03,2.64]
[1761316244577,2.7,190.16,190.03,2.64]
[1761316245086,4.733,190.14,190.03,4.7353]
[1761316245277,4.733,190.14,190.04,64.64]
[1761316245776,2.7,190.14,190.04,64.64]
[1761316245977,2.7,190.14,190.02,8.35284624]
[1761316245978,2.7,190.14,190.02,2.64]
[1761316246570,4.7335,190.12,190.02,2.64]
[1761316247180,3.67348802,190.13,190.02,2.64]
[1761316247576,2.7,190.14,190.02,2.64]
[1761316248479,4.7335,190.12,190.02,2.64]
[1761316248872,2.7,190.14,190.02,64.64]
[1761316249173,4.7338,190.1,190.03,2.64]
[1761316249578,2.7,190.14,190.03,2.64]
[1761316249783,4.7333,190.12,190.03,2.64]
[1761316252587,4.7338,190.11,190.03,2.64]
[1761316254089,4.7343,190.08,189.99,7.3765]
[1761316254278,4.7343,190.08,189.99,4.7365]
[1761316254587,4.7343,190.08,189.96,8.35284624]
[1761316254588,4.7343,190.08,190.0,2.64]
[1761316254886,4.7347,190.07,190.0,2.64]
[1761316257588,2.8,190.11,189.94,2.79]
[1761316258092,2.8,190.09,189.94,2.79]
[1761316258682,2.8,190.08,189.94,2.79]
[1761316259389,2.8,190.07,189.9,154.7554852]
[1761316259690,2.8,190.07,189.9,108.1554852]
[1761316259883,2.8,190.03,189.9,105.3654852]
[1761316260287,4.7367,189.99,189.9,108.1554852]
[1761316260592,2.8,189.98,189.9,105.3654852]
[1761316261089,2.8,189.97,189.9,105.3654852]
[1761316261492,7.538,189.94,189.9,105.3654852]
[1761316261882,4.738,189.94,189.9,105.3654852]
[1761316262083,2.8,189.92,189.9,105.3654852]
[1761316262290,2.8,189.92,189.82,2.79]
[1761316262488,2.8,189.91,189.75,2.79]
[1761316263096,2.8,189.91,189.76,2.79]
[1761316263482,2.8,189.96,189.8,2.79]
[1761316264089,2.8,189.96,189.81,62.0]
[1761316264286,2.8,189.96,189.82,2.79]
[1761316264485,4.738,189.93,189.82,2.79]
[1761316264695,2.8,189.96,189.82,2.79]
[1761316264888,2.8,190.0,189.85,2.79]
[1761316265087,2.8,189.99,189.81,62.0]
[1761316265382,2.8,189.98,189.82,2.79]
[1761316265588,2.8,189.95,189.82,2.79]
[1761316266290,2.8,189.99,189.84,2.79]
[1761316266495,2.8,189.99,189.85,2.79]
[1761316267603,2.8,190.03,189.86,2.79]
[1761316267895,2.8,189.99,189.86,2.79]
[1761316268500,2.8,189.99,189.87,2.79]
[1761316269194,46.6,190.06,189.9,2.79]
[1761316269195,2.8,190.06,189.9,2.79]
[1761316269596,4.7355,190.03,189.92,2.79]
[1761316269892,2.8,190.11,189.94,2.79]
[1761316270085,2.8,190.11,189.98,2.79]
[1761316270086,4.7338,190.1,189.98,2.79]
[1761316270290,2.8,190.11,189.98,2.79]
[1761316270704,2.8,190.11,190.01,2.79]
[1761316271104,4.733,190.13,190.01,2.79]
[1761316271400,2.8,190.16,190.01,2.79]
[1761316271789,2.8,190.16,190.04,5.07397991]
[1761316271994,2.8,190.16,190.05,2.79]
[1761316272195,2.8,190.21,190.05,2.79]
[1761316272399,2.8,190.21,190.06,2.79]
[1761316272898,2.8,190.21,190.09,2.79]
[1761316273398,2.8,190.26,190.13,2.79]
[1761316274000,7.5298,190.26,190.13,2.79]
[1761316274199,2.8,190.26,190.13,2.79]
[1761316274902,4.7294,190.28,190.17,2.79]
[1761316275099,2.8,190.31,190.17,2.79]
[1761316275297,2.8,190.31,190.2,5.07397991]
[1761316275501,2.8,190.31,190.21,2.79]
[1761316276203,3.71459809,190.4,190.25,2.79]
[1761316276497,2.8,190.4,190.29,2.79]
[1761316276897,2.8,190.4,190.24,4.7301]
[1761316276898,2.8,190.4,190.24,2.79]
[1761316277195,4.7273,190.37,190.24,2.79]
[1761316277392,2.8,190.41,190.24,2.79]
[1761316277599,2.8,190.41,190.26,2.79]
[1761316277800,7.5261,190.41,190.26,2.79]
[1761316278803,2.8,190.38,190.26,2.79]
[1761316279303,4.727,190.37,190.26,2.79]
[1761316279500,7.527,190.37,190.26,2.79]
[1761316279904,7.5277,190.35,190.26,2.79]
[1761316280404,4.7282,190.33,190.19,5.07397991]
[1761316280707,2.8,190.35,190.2,2.79]
[1761316281106,4.7278,190.34,190.22,2.79]
[1761316281510,2.8,190.34,190.22,2.79]
[1761316281706,4.7284,190.32,190.22,2.79]
[1761316282002,2.8,190.34,190.22,2.79]
[1761316282604,4.7275,190.35,190.22,2.79]
[1761316283006,24.1,190.41,190.22,2.79]
[1761316283007,2.8,190.4,190.23,2.79]
[1761316283202,2.8,190.4,190.26,5.07397991]
[1761316283403,2.8,190.4,190.27,2.79]
[1761316283898,7.5264,190.4,190.27,7.86397991]
[1761316284105,2.8,190.4,190.28,2.79]
[1761316284303,2.8,190.39,190.24,2.79]
[1761316284510,4.7279,190.34,190.24,2.79]
[1761316285606,4.7271,190.37,190.24,2.79]
[1761316285909,2.8,190.39,190.24,2.79]
[1761316286308,4.7276,190.35,190.24,2.79]
[1761316286908,2.8,190.39,190.25,2.79]
[1761316287310,4.7269,190.38,190.27,2.79]
[1761316289207,4.7269,190.38,190.29,2.79]
[1761316290302,2.8,190.43,190.3,5.07397991]
[1761316290503,2.8,190.53,190.35,2.79]
[1761316290811,2.8,190.53,190.39,2.79]
[1761316291011,4.7235,190.52,190.39,2.79]
[1761316291201,2.8,190.53,190.39,2.79]
[1761316292418,2.8,190.48,190.35,2.79]
[1761316294610,2.8,190.49,190.35,2.79]
[1761316294812,4.725,190.46,190.35,2.79]
[1761316295015,2.8,190.45,190.35,2.79]
[1761316295622,4.7253,190.44,190.35,2.79]
[1761316295826,2.8,190.45,190.35,2.79]
[1761316296128,4.7258,190.42,190.35,2.79]
[1761316296627,4.7258,190.42,190.3,2.79]